bitfinex-derivatives/quotes_ETHF0:USTF0_20250505
["timestamp","ask_amount","ask_price","bid_price","bid_amount"]
[1746403867207,3.67173075,1810.8,1810.7,8.97363]
[1746403867408,3.67173075,1810.8,1810.7,12.18143]
[1746403867713,3.67173075,1811.0,1810.9,1.10436]
[1746403867906,3.67173075,1811.0,1810.9,5.24151]
[1746403868106,3.67173075,1811.0,1810.9,8.97351]
[1746403868307,3.67173075,1811.0,1810.9,9.82741]
[1746403870015,4.77603075,1811.0,1810.9,8.72305]
[1746403870509,3.67173075,1811.0,1810.9,11.53331]
[1746403870710,3.67173075,1811.0,1810.9,14.74111]
[1746403871405,4.77603075,1811.0,1810.9,10.42895]
[1746403871807,2.6965,1811.0,1810.9,10.42895]
[1746403872119,2.6965,1811.0,1810.9,6.69695]
[1746403873216,1.1043,1811.0,1810.9,7.80131]
[1746403873410,5.12449,1811.1,1810.9,7.80131]
[1746403873607,4.31209,1811.1,1811.0,5.82525]
[1746403874009,4.31209,1811.1,1811.0,6.61425]
[1746403875915,3.2078,1811.1,1811.0,6.61425]
[1746403876416,2.72782,1811.2,1811.0,6.61425]
[1746403876615,2.72782,1811.2,1811.1,5.72645]
[1746403876917,5.93562,1811.2,1811.1,1.5893]
[1746403877317,1.10416,1811.3,1811.1,6.83066]
[1746403877516,1.10416,1811.3,1811.2,4.13715]
[1746403877720,1.10416,1811.3,1811.2,5.72645]
[1746403877910,6.81991,1811.4,1811.2,6.83063]
[1746403878111,3.2078,1811.4,1811.3,6.83057]
[1746403878510,4.31186,1811.4,1811.3,5.72645]
[1746403878921,4.31186,1811.4,1811.3,6.83057]
[1746403879220,4.31186,1811.4,1811.3,5.72645]
[1746403882918,6.00766,1811.4,1811.3,5.72645]
[1746403883720,12.66383,1811.4,1811.0,0.789]
[1746403884018,1.10424,1811.1,1811.0,0.789]
[1746403884217,1.10424,1811.1,1811.0,2.3924]
[1746403884517,2.81374,1811.1,1811.0,6.52955]
[1746403886220,2.81374,1811.1,1811.0,7.63385]
[1746403886423,2.81374,1811.1,1811.0,6.52955]
[1746403886619,2.81374,1811.1,1811.0,7.63385]
[1746403886817,2.81374,1811.1,1811.0,6.52955]
[1746403887121,2.81374,1811.1,1811.0,7.63385]
[1746403887916,2.81374,1811.1,1811.0,6.52955]
[1746403888622,2.81374,1811.1,1811.0,7.63385]
[1746403889017,1.7095,1811.1,1811.0,7.63385]
[1746403889213,2.81374,1811.1,1811.0,7.63385]
[1746403889418,1.6117,1811.3,1811.0,7.63385]
[1746403889618,1.10424,1811.2,1811.1,5.76165]
[1746403890021,1.10424,1811.2,1811.1,6.86589]
[1746403890223,1.10424,1811.2,1811.1,2.72874]
[1746403891422,1.10424,1811.2,1811.1,5.76165]
[1746403891822,2.4942,1811.3,1811.2,1.10418]
[1746403892124,4.31189,1811.4,1811.2,11.35383]
[1746403892323,1.10412,1811.3,1811.2,11.35383]
[1746403892521,1.10412,1811.3,1811.2,9.76223]
[1746403893026,1.10412,1811.3,1811.2,8.65805]
[1746403893324,1.10418,1811.2,1811.0,5.62526]
[1746403893526,1.10418,1811.2,1811.0,6.48586]
[1746403893829,2.75538,1811.2,1811.1,4.13715]
[1746403894016,2.75538,1811.2,1811.1,5.24139]
[1746403894219,1.6512,1811.2,1811.1,5.24139]
[1746403894417,1.93896,1811.3,1811.2,1.10418]
[1746403894625,1.10416,1811.3,1811.2,5.24133]
[1746403894816,5.9631,1811.4,1811.3,1.10412]
[1746403895018,5.9631,1811.4,1811.3,6.10187]
[1746403897023,4.3119,1811.4,1811.3,6.10187]
[1746403897719,1.1041,1811.4,1811.3,6.10187]
[1746403898620,1.1041,1811.4,1811.3,4.99775]
[1746403898922,1.1041,1811.4,1811.3,4.13715]
[1746403899126,2.8132,1811.4,1811.3,5.24127]
[1746403901623,2.8132,1811.4,1811.3,4.13715]
[1746403902717,1.7091,1811.4,1811.3,5.24127]
[1746403902923,2.81316,1811.4,1811.3,5.24127]
[1746403903826,2.81316,1811.4,1811.3,4.13715]
[1746403904430,2.81316,1811.4,1811.3,5.24127]
[1746403904630,2.81316,1811.4,1811.3,4.13715]
[1746403905325,2.81316,1811.4,1811.3,5.77095]
[1746403907633,2.81854043,1811.4,1811.3,5.77095]
[1746403908229,2.81854043,1811.4,1811.3,6.87507]
[1746403910830,1.10944043,1811.4,1811.3,6.87507]
[1746403911031,1.10944043,1811.4,1811.3,5.77095]
[1746403911530,2.78834043,1811.4,1811.3,5.77095]
[1746403912229,2.78834043,1811.4,1811.3,9.50295]
[1746403913137,0.00538043,1811.4,1811.3,10.60707]
[1746403913335,1.10944043,1811.4,1811.3,10.60707]
[1746403914331,1.10944043,1811.4,1811.3,9.50295]
[1746403914734,0.00538043,1811.4,1811.3,10.60707]
[1746403915233,1.10944043,1811.4,1811.3,10.60707]
[1746403916744,2.77694043,1811.4,1811.3,10.60707]
[1746403916941,2.77694043,1811.4,1811.3,7.86915]
[1746403917139,3.57324043,1811.4,1811.3,3.732]
[1746403919743,6.78104043,1811.4,1811.3,3.732]
[1746403922244,1.10424,1811.1,1811.0,5.675]
[1746403922442,1.1043,1811.0,1810.9,7.33195307]
[1746403922746,4.5002,1811.0,1810.9,7.33195307]
[1746403923144,4.5002,1811.0,1810.9,11.06395307]
[1746403924039,4.5002,1811.0,1810.9,3.732]
[1746403924444,7.708,1811.0,1810.9,3.732]
[1746403924641,6.8704,1811.0,1810.9,3.732]
[1746403924947,6.8704,1811.0,1810.9,9.56145]
[1746403925745,3.2078,1811.0,1810.9,10.66581]
[1746403925949,3.67173075,1811.2,1811.1,1.10424]
[1746403926149,3.67173075,1811.2,1811.1,5.24139]
[1746403926747,3.67173075,1811.2,1811.1,6.93369]
[1746403926949,3.67173075,1811.2,1811.1,10.14149]
[1746403927146,3.67173075,1811.2,1811.1,18.81349]
[1746403927751,3.67173075,1811.3,1811.2,1.10418]
[1746403928045,3.67173075,1811.3,1811.2,6.80823]
[1746403928046,4.77585075,1811.3,1811.2,6.80823]
[1746403928247,4.77585075,1811.3,1811.2,10.54023]
[1746403928949,3.67173075,1811.3,1811.2,10.54023]
[1746403929951,4.77585075,1811.3,1811.2,10.54023]
[1746403930352,3.67173075,1811.3,1811.2,10.54023]
[1746403931050,0.00538043,1811.4,1811.3,1.10412]
[1746403931253,0.00538043,1811.4,1811.3,7.73647]
[1746403932347,1.10944043,1811.4,1811.3,10.36435]
[1746403932747,2.75974043,1811.4,1811.3,5.419]
[1746403933552,2.75974043,1811.4,1811.3,6.52312]
[1746403933752,2.75974043,1811.4,1811.3,5.419]
[1746403934147,2.75974043,1811.4,1811.3,6.52312]
[1746403934545,2.75974043,1811.4,1811.3,5.419]
[1746403934846,2.75974043,1811.4,1811.3,6.52312]
[1746403935055,2.75974043,1811.4,1811.3,5.419]
[1746403935357,2.75974043,1811.4,1811.3,3.732]
[1746403937651,7.13562307,1811.4,1811.3,3.732]
[1746403937953,7.13562307,1811.4,1811.3,4.83612]
[1746403938152,5.48532307,1811.4,1811.3,6.41152]
[1746403938755,4.38126307,1811.4,1811.3,6.41152]
[1746403939552,5.48532307,1811.4,1811.3,6.41152]
[1746403939755,4.38126307,1811.4,1811.3,6.41152]
[1746403940454,4.38126307,1811.4,1811.3,10.54867]
[1746403940956,0.00538043,1811.4,1811.3,10.54867]
[1746403943154,1.10944043,1811.4,1811.3,9.44455]
[1746403943349,1.10944043,1811.4,1811.3,5.3074]
[1746403943550,2.82844043,1811.4,1811.3,3.732]
[1746403943749,3.64624043,1811.4,1811.3,3.732]
[1746403945155,1.10418,1811.2,1811.1,12.66362]
[1746403945347,1.10418,1811.2,1811.1,11.5594]
[1746403945547,1.10418,1811.2,1811.1,15.69655]
[1746403945755,2.72908,1811.2,1811.1,15.69655]
[1746403946453,1.10424,1811.1,1811.0,11.06395307]
[1746403946656,2.72914,1811.1,1811.0,11.06395307]
[1746403947556,2.72914,1811.1,1811.0,3.732]
[1746403948458,10.93694,1811.1,1811.0,3.732]
[1746403948957,14.60594,1811.1,1811.0,3.732]
[1746403949156,14.60594,1811.1,1810.8,7.33195307]
[1746403949157,1.10436,1810.9,1810.8,7.33195307]
[1746403949860,3.51936,1810.9,1810.8,7.33195307]
[1746403950158,3.51936,1810.9,1810.8,11.06395307]
[1746403951463,6.72716,1810.9,1810.8,11.06395307]
[1746403951952,6.72716,1810.9,1810.8,3.732]
[1746403952251,1.10448,1810.7,1810.6,1.7191]
[1746403952549,1.10448,1810.7,1810.6,5.85625]
[1746403953859,1.10448,1810.7,1810.6,1.7191]
[1746403957058,1.10448,1810.7,1810.6,2.82365]
[1746403957255,3.2078,1810.9,1810.6,5.85625]
[1746403957458,7.98381075,1811.1,1810.8,4.13715]
[1746403957759,3.67173075,1811.1,1811.0,5.24145]
[1746403958169,3.20143075,1811.1,1811.0,24.78605]
[1746403962061,0.4395644,1811.1,1811.0,24.78605]
[1746403962368,5.50789301,1811.2,1811.1,1.10424]
[1746403962563,5.50789301,1811.2,1811.1,10.47709]
[1746403963269,0.00538043,1811.4,1811.3,1.10412]
[1746403963468,0.00538043,1811.4,1811.3,5.24127]
[1746403963868,0.00538043,1811.4,1811.3,7.75367]
[1746403964262,0.00538043,1811.4,1811.3,11.48567]
[1746403965763,0.00538043,1811.4,1811.3,12.30307]
[1746403972673,0.00538043,1811.4,1811.3,12.74454792]
[1746403972972,0.00538043,1811.4,1811.3,12.30307]
[1746403974980,0.00538043,1811.4,1811.3,12.73459043]
[1746403975170,0.00538043,1811.4,1811.3,12.30307]
[1746403978180,0.00538043,1811.4,1811.3,23.20107]
[1746403979074,0.00538043,1811.4,1811.3,18.20107]
[1746403980481,0.00538043,1811.4,1811.3,12.30307]
[1746403983276,1.10376,1811.9,1811.8,1.10381]
[1746403983783,2.4008,1812.0,1811.8,1.10381]
[1746403983980,1.5895,1811.9,1811.8,1.10381]
[1746403984169,1.5895,1811.9,1811.8,8.97296]
[1746403984374,7.2994525,1812.6,1812.3,1.10351]
[1746403984679,1.5895,1812.4,1812.2,7.34495]
[1746403984879,1.5895,1812.4,1812.2,8.44846]
[1746403985073,1.5895,1812.4,1812.2,3.2078]
[1746403985279,2.69295,1812.4,1812.2,3.732]
[1746403985480,2.69297,1812.4,1812.2,3.732]
[1746403985675,2.80501,1812.3,1812.2,3.72661957]
[1746403986074,6.7015,1812.3,1812.2,3.72661957]
[1746403986680,1.7015,1812.3,1812.2,3.72661957]
[1746403988885,1.7015,1812.3,1812.2,4.83018957]
[1746403990281,1.7015,1812.3,1812.2,8.03798957]
[1746403990580,1.7015,1812.3,1812.2,9.62598957]
[1746403990785,3.664,1812.7,1812.4,1.10341]
[1746403990987,2.4496,1812.6,1812.4,4.31121]
[1746403991181,1.7262,1812.5,1812.4,8.04321]
[1746403991989,1.7262,1812.5,1812.4,8.5154]
[1746403992189,1.7262,1812.5,1812.4,9.61885]
[1746403993988,3.2078,1813.3,1812.5,2.75848]
[1746403994193,3.2078,1813.3,1813.0,1.10304]
[1746403994194,4.31071,1813.3,1813.0,1.10304]
[1746403994397,1.5867,1813.1,1812.9,4.13715]
[1746403994691,1.5867,1813.1,1813.0,1.10308]
[1746403994887,1.5867,1813.1,1812.9,5.24027]
[1746403995086,1.5867,1813.1,1812.8,2.74916]
[1746403995291,1.6209,1813.0,1812.9,1.10314]
[1746403996091,0.8092,1813.0,1812.9,4.83514]
[1746403996683,0.8092,1813.0,1812.9,8.04294]
[1746403997187,0.8092,1813.0,1812.7,5.10847]
[1746403997490,1.7358,1812.9,1812.8,1.10319]
[1746403997893,1.7358,1812.9,1812.7,1.7355]
[1746403998291,1.7358,1812.9,1812.7,2.83876]
[1746403998890,1.7358,1812.9,1812.8,1.10321]
[1746403999294,1.7358,1812.9,1812.7,6.04652]
[1746403999494,1.7358,1812.9,1812.8,1.10321]
[1746404000294,1.7358,1812.9,1812.8,6.50601]
[1746404000799,1.7358,1812.9,1812.8,10.64316]
[1746404000986,0.8273,1813.0,1812.9,1.10314]
[1746404001190,3.54218,1813.0,1812.8,9.53995]
[1746404001494,2.4391,1813.0,1812.9,1.10314]
[1746404002091,3.54221,1813.0,1812.9,3.732]
[1746404002499,2.4391,1813.0,1812.9,4.83514]
[1746404004699,2.4391,1813.0,1812.9,8.04294]
[1746404005000,2.4391,1813.0,1812.9,4.83514]
[1746404007201,3.54218,1813.0,1812.9,3.732]
[1746404007595,2.4391,1813.0,1812.9,4.83514]
[1746404011904,3.54218,1813.0,1812.9,4.83514]
[1746404012298,3.54218,1813.0,1812.9,1.10314]
[1746404012595,2.4391,1813.0,1812.9,1.10314]
[1746404014104,2.4391,1813.0,1812.9,4.83514]
[1746404015605,0.8273,1813.0,1812.9,8.97229]
[1746404015808,1.93038,1813.0,1812.9,3.732]
[1746404016204,3.65748,1813.0,1812.9,3.732]
[1746404016405,3.65748,1813.0,1812.9,6.55674]
[1746404016609,2.5544,1813.0,1812.9,6.55674]
[1746404017120,0.8273,1813.0,1812.9,2.82474]
[1746404017419,0.8273,1813.0,1812.9,6.96189]
[1746404018117,0.8273,1813.0,1812.9,10.69389]
[1746404021620,1.93038,1813.0,1812.9,10.69389]
[1746404021924,0.8273,1813.0,1812.9,10.69389]
[1746404022516,0.8273,1813.0,1812.9,13.90169]
[1746404022814,0.8273,1813.0,1812.9,28.46069]
[1746404023017,0.8273,1813.0,1812.9,28.57101048]
[1746404024115,1.5745,1813.1,1812.9,27.46787048]
[1746404024313,0.1745,1813.1,1813.0,7.77893]
[1746404024510,0.1745,1813.1,1813.0,8.60993]
[1746404024718,9.34341,1813.8,1813.5,1.10277]
[1746404025017,2.7485,1813.7,1813.6,1.10272]
[1746404025217,1.10272,1813.6,1813.5,5.62684]
[1746404025421,1.10272,1813.6,1813.5,8.18994]
[1746404025923,1.10272,1813.6,1813.5,7.0872]
[1746404026223,1.10272,1813.6,1813.5,3.732]
[1746404027024,1.10272,1813.6,1813.5,4.83478]
[1746404027323,1.10272,1813.6,1813.5,1.93378]
[1746404027520,2.74847,1813.7,1813.6,1.10272]
[1746404027725,2.92527,1813.7,1813.5,0.831]
[1746404027915,2.92527,1813.7,1813.6,1.7046]
[1746404028118,2.74847,1813.7,1813.6,2.4866]
[1746404028320,5.1621,1813.8,1813.6,2.4866]
[1746404028619,1.9543,1813.8,1813.7,4.13715]
[1746404028818,3.6985,1813.8,1813.7,4.13715]
[1746404029119,3.6985,1813.8,1813.7,5.4366]
[1746404029319,3.5217,1813.8,1813.7,5.4366]
[1746404029523,4.6243,1813.8,1813.7,5.4366]
[1746404030025,4.6243,1813.8,1813.7,6.53926]
[1746404030629,7.8321,1813.8,1813.7,3.732]
[1746404031217,6.7295,1813.8,1813.4,3.5247]
[1746404031421,1.10276,1813.6,1813.5,4.13715]
[1746404031714,1.10272,1813.6,1813.5,5.2399]
[1746404031919,2.7995,1813.7,1813.5,7.85658398]
[1746404032122,1.6968,1813.7,1813.5,3.71943398]
[1746404032321,1.6968,1813.6,1813.5,3.71943398]
[1746404033126,1.10271,1813.7,1813.6,1.10272]
[1746404033331,1.10271,1813.7,1813.6,2.74262]
[1746404033627,1.10271,1813.7,1813.6,1.6399]
[1746404033927,2.72521,1813.7,1813.6,1.6399]
[1746404034219,6.45721,1813.7,1813.6,1.6399]
[1746404034424,1.10272,1813.6,1813.5,2.07954398]
[1746404034724,1.10272,1813.6,1813.5,2.68218398]
[1746404034921,2.72522,1813.6,1813.5,2.68218398]
[1746404035121,2.72522,1813.6,1813.5,3.78496398]
[1746404035519,2.72522,1813.6,1813.5,7.92211398]
[1746404035828,2.72522,1813.6,1813.5,6.81933398]
[1746404036231,2.72522,1813.6,1813.5,0.11028398]
[1746404036528,5.93302,1813.6,1813.5,0.11028398]
[1746404037125,9.66502,1813.6,1813.5,0.11028398]
[1746404037326,13.32402,1813.6,1813.5,0.11028398]
[1746404038227,10.11622,1813.6,1813.5,0.11028398]
[1746404042842,13.32402,1813.6,1813.5,0.11028398]
[1746404044033,1.10296,1813.2,1813.1,3.2078]
[1746404044236,1.10296,1813.2,1813.1,5.17682]
[1746404044441,1.10296,1813.2,1813.1,8.21095]
[1746404044733,1.10296,1813.2,1813.1,9.85895]
[1746404045435,1.10296,1813.2,1813.1,10.96197]
[1746404045733,1.10296,1813.2,1813.1,9.85895]
[1746404046136,1.10296,1813.2,1813.1,10.96197]
[1746404046437,1.10296,1813.2,1813.1,9.85895]
[1746404047329,2.93555,1813.3,1813.1,10.96194]
[1746404047630,2.93555,1813.3,1813.2,5.84055]
[1746404048025,2.75835,1813.3,1813.2,5.84055]
[1746404049940,2.75835,1813.3,1813.2,1.7034]
[1746404050141,6.49035,1813.3,1813.2,1.7034]
[1746404051335,1.10296,1813.2,1813.1,3.2078]
[1746404051534,3.65866,1813.2,1813.1,7.34495]
[1746404052539,2.83756,1813.2,1813.1,10.09167]
[1746404052742,2.83756,1813.2,1813.1,8.98865]
[1746404053042,1.7346,1813.2,1813.1,10.09167]
[1746404053237,1.10296,1813.2,1813.1,10.09167]
[1746404053638,1.10296,1813.2,1813.1,8.98865]
[1746404054646,1.10296,1813.2,1813.1,10.09167]
[1746404055142,6.34093,1813.3,1813.1,10.09165]
[1746404055342,6.34093,1813.3,1813.2,1.5786]
[1746404057247,10.07293,1813.3,1813.2,1.5786]
[1746404058249,1.10302,1813.1,1813.0,0.8267]
[1746404058449,1.10302,1813.1,1813.0,2.4521]
[1746404058650,1.10302,1813.1,1813.0,6.58925]
[1746404059250,2.76411,1813.2,1813.1,1.10302]
[1746404059450,2.76411,1813.2,1813.1,6.86557]
[1746404059652,2.76411,1813.2,1813.1,2.72842]
[1746404059854,4.76192,1813.3,1813.1,2.72842]
[1746404060050,8.49392,1813.3,1813.2,1.6254]
[1746404060255,8.67152,1813.3,1813.2,2.4287]
[1746404060554,8.49392,1813.3,1813.2,2.4287]
[1746404060750,10.15502,1813.3,1813.2,2.4287]
[1746404062261,1.10302,1813.1,1813.0,0.8267]
[1746404062461,1.10302,1813.1,1813.0,3.2245]
[1746404062653,1.10302,1813.1,1813.0,7.36165]
[1746404063157,1.90722,1813.1,1813.0,7.36165]
[1746404063358,1.10302,1813.1,1813.0,7.36165]
[1746404063855,1.10302,1813.1,1813.0,2.3978]
[1746404064248,4.83502,1813.1,1813.0,2.3978]
[1746404066458,4.83502,1813.1,1813.0,6.53495]
[1746404069060,4.83502,1813.1,1813.0,7.63803]
[1746404069559,4.83502,1813.1,1813.0,6.53495]
[1746404072164,4.83502,1813.1,1813.0,2.3978]
[1746404075262,3.732,1813.1,1813.0,2.3978]
[1746404075565,3.732,1813.1,1813.0,12.74834439]
[1746404076166,0.1778,1813.2,1813.1,1.10302]
[1746404076467,0.00485728,1813.3,1813.2,1.10296]
[1746404076670,0.00485728,1813.3,1813.2,6.09131]
[1746404076964,0.00485728,1813.3,1813.2,7.78621]
[1746404077166,0.00485728,1813.3,1813.2,11.51821]
[1746404080970,0.00485728,1813.3,1813.2,11.62851222]
[1746404083175,0.28605728,1813.3,1813.2,11.62851222]
[1746404089880,1.38895728,1813.3,1813.2,7.97945222]
[1746404090074,2.99565728,1813.3,1813.2,9.08241222]
[1746404090273,2.99565728,1813.3,1813.2,5.35041222]
[1746404090870,2.99565728,1813.3,1813.2,6.99691222]
[1746404091071,2.99565728,1813.3,1813.2,1.21326222]
[1746404091277,2.99565728,1813.3,1813.2,0.11030222]
[1746404092380,1.89275728,1813.3,1813.2,1.21326222]
[1746404092581,0.28605728,1813.3,1813.2,7.85471222]
[1746404092785,0.28605728,1813.3,1813.2,8.71531222]
[1746404094182,0.28605728,1813.3,1813.2,12.44731222]
[1746404096081,1.38895728,1813.3,1813.2,11.34435222]
[1746404096282,1.38895728,1813.3,1813.2,12.44731222]
[1746404096684,1.38895728,1813.3,1813.2,11.34435222]
[1746404097071,1.38895728,1813.3,1813.2,7.61235222]
[1746404097779,10.04195728,1813.3,1813.2,2.22e-06]
[1746404097984,12.51895728,1813.3,1813.2,2.22e-06]
[1746404098183,16.25095728,1813.3,1813.2,2.22e-06]
[1746404099687,12.59795728,1813.3,1813.2,2.22e-06]
[1746404099891,16.25095728,1813.3,1813.2,2.22e-06]
[1746404102488,22.46233361,1813.3,1813.2,2.22e-06]
[1746404102689,17.46233361,1813.3,1813.2,2.22e-06]
[1746404105689,1.10321,1812.8,1812.7,1.6002]
[1746404106090,1.10321,1812.8,1812.7,5.73735]
[1746404106288,4.83521,1812.8,1812.7,4.13715]
[1746404106498,6.47161,1812.8,1812.7,4.13715]
[1746404106691,5.3684,1812.8,1812.7,4.13715]
[1746404106893,4.83521,1812.8,1812.7,7.34495]
[1746404107089,4.83521,1812.8,1812.7,5.86535]
[1746404107396,1.10327,1812.7,1812.6,0.7869]
[1746404107696,1.10327,1812.7,1812.5,3.9981]
[1746404107697,1.10333,1812.6,1812.5,4.936]
[1746404107896,1.88433,1812.6,1812.5,9.07315]
[1746404108097,5.61633,1812.6,1812.5,7.34495]
[1746404108396,7.34933,1812.6,1812.5,7.34495]
[1746404109094,7.34933,1812.6,1812.5,3.2078]
[1746404111596,1.10339,1812.5,1812.4,1.7282]
[1746404111799,1.10345,1812.4,1812.3,12.23385307]
[1746404112001,1.10345,1812.4,1812.3,13.87815307]
[1746404112301,4.83545,1812.4,1812.3,18.01530307]
[1746404112599,4.83545,1812.4,1812.3,10.68335]
[1746404115501,8.48945,1812.4,1812.3,10.68335]
[1746404115807,7.386,1812.4,1812.3,11.78686]
[1746404116304,8.48945,1812.4,1812.3,11.78686]
[1746404116501,3.732,1812.4,1812.3,11.78686]
[1746404117500,3.732,1812.4,1812.3,16.78686]
[1746404118199,0.2815,1812.7,1812.6,1.10333]
[1746404118404,0.2815,1812.7,1812.6,8.44828]
[1746404118805,0.2815,1812.7,1812.6,9.24108]
[1746404120006,1.38477,1812.7,1812.6,9.24108]
[1746404120199,5.11677,1812.7,1812.6,9.24108]
[1746404121106,4.0135,1812.7,1812.6,9.24108]
[1746404121315,5.11677,1812.7,1812.6,9.24108]
[1746404121607,4.0135,1812.7,1812.6,9.24108]
[1746404123007,5.11677,1812.7,1812.6,9.24108]
[1746404123209,4.0135,1812.7,1812.6,9.24108]
[1746404123403,5.11677,1812.7,1812.6,7.34495]
[1746404123800,5.11677,1812.7,1812.6,10.01798]
[1746404124500,5.11677,1812.7,1812.6,8.91465]
[1746404124708,5.11677,1812.7,1812.4,3.9998]
[1746404124709,1.10339,1812.5,1812.4,3.9998]
[1746404124905,1.10339,1812.5,1812.4,5.5695]
[1746404125101,1.10339,1812.5,1812.4,9.70665]
[1746404125302,4.83539,1812.5,1812.4,9.70665]
[1746404125610,5.11709,1812.5,1812.4,9.70665]
[1746404128216,5.11709,1812.5,1812.4,3.2078]
[1746404129714,1.10345,1812.4,1812.3,2.5387]
[1746404130013,2.77255,1812.4,1812.3,2.5387]
[1746404130214,6.50455,1812.4,1812.3,2.5387]
[1746404130402,10.15555,1812.4,1812.3,2.5387]
[1746404132224,10.15555,1812.4,1812.3,6.67585]
[1746404132225,8.48645,1812.4,1812.3,6.67585]
[1746404133819,7.383,1812.4,1812.3,7.77936]
[1746404134013,8.48645,1812.4,1812.3,7.77936]
[1746404134210,8.48645,1812.4,1812.3,6.67585]
[1746404134408,8.48645,1812.4,1812.3,7.77936]
[1746404134615,8.48645,1812.4,1812.3,6.67585]
[1746404135119,8.66515,1812.4,1812.3,6.67585]
[1746404135418,8.66515,1812.4,1812.3,7.77936]
[1746404135614,8.66515,1812.4,1812.3,6.67585]
[1746404137019,10.38215,1812.4,1812.3,6.67585]
[1746404137217,11.23595,1812.4,1812.3,6.67585]
[1746404138717,1.10351,1812.3,1812.2,3.99]
[1746404138918,1.10351,1812.3,1812.2,8.12715]
[1746404139114,6.54171,1812.3,1812.2,9.79025]
[1746404140211,4.83551,1812.3,1812.2,9.79025]
[1746404143524,4.83551,1812.3,1812.2,7.34495]
[1746404143726,7.28001,1812.3,1812.2,7.34495]
[1746404143919,1.10363,1812.1,1812.0,5.5952]
[1746404144216,1.10363,1812.1,1812.0,3.2078]
[1746404144217,4.83563,1812.1,1812.0,3.2078]
[1746404144620,8.48763,1812.1,1812.0,3.2078]
[1746404144821,9.33513,1812.1,1812.0,3.2078]
[1746404146923,9.51393,1812.1,1812.0,3.2078]
[1746404147626,9.51393,1812.1,1812.0,4.7867]
[1746404148731,9.51393,1812.1,1812.0,3.2078]
[1746404149528,1.10369,1812.0,1811.9,1.5789]
[1746404149723,1.10369,1812.0,1811.9,4.7867]
[1746404149924,1.10369,1812.0,1811.9,8.92385]
[1746404150127,4.83569,1812.0,1811.9,8.92385]
[1746404150731,4.83569,1812.0,1811.9,5.71605]
[1746404151332,4.83569,1812.0,1811.9,8.92385]
[1746404151533,6.56589,1812.0,1811.9,8.92385]
[1746404153139,4.83569,1812.0,1811.9,8.92385]
[1746404153440,5.11759,1812.0,1811.9,8.92385]
[1746404156438,4.0139,1812.0,1811.9,13.92385]
[1746404156640,4.0139,1812.0,1811.9,15.0276]
[1746404157242,0.2819,1812.0,1811.9,15.0276]
[1746404157644,0.2819,1812.0,1811.9,13.92385]
[1746404158241,0.2819,1812.0,1811.9,15.0276]
[1746404158545,0.2819,1812.0,1811.9,10.0276]
[1746404158741,0.2819,1812.0,1811.9,15.9256]
[1746404158942,0.2819,1812.0,1811.9,14.82185]
[1746404159150,4.0139,1812.0,1811.9,14.82185]
[1746404159444,4.0139,1812.0,1811.9,15.9256]
[1746404159938,4.0139,1812.0,1811.9,14.82185]
[1746404160545,4.0139,1812.0,1811.9,15.9256]
[1746404164151,0.2819,1812.0,1811.9,15.9256]
[1746404170457,0.2819,1812.0,1811.9,10.0276]
[1746404170758,1.38559,1812.0,1811.9,3.2078]
[1746404170954,3.77869,1812.0,1811.9,3.2078]
[1746404171151,7.51069,1812.0,1811.9,12.22125307]
[1746404175461,7.68969,1812.0,1811.9,4.8893]
[1746404175654,7.68969,1812.0,1811.9,3.2078]
[1746404175854,1.10375,1811.9,1811.8,1.6397]
[1746404176050,7.26095,1811.9,1811.8,2.74351]
[1746404176358,3.732,1811.9,1811.8,8.53536]
[1746404176554,4.83575,1811.9,1811.8,7.43155]
[1746404177061,5.11775,1811.9,1811.8,7.43155]
[1746404177258,6.78165,1811.9,1811.8,7.43155]
[1746404177469,6.78165,1811.9,1811.8,6.62645]
[1746404177656,6.78165,1811.9,1811.8,7.73026]
[1746404178063,5.6779,1811.9,1811.8,7.73026]
[1746404178768,4.014,1811.9,1811.8,7.73026]
[1746404179065,4.014,1811.9,1811.8,12.73026]
[1746404179264,0.282,1811.9,1811.8,12.73026]
[1746404180065,0.282,1811.9,1811.8,16.37926]
[1746404180266,1e-08,1811.9,1811.8,16.37926]
[1746404180664,1e-08,1811.9,1811.8,11.37926]
[1746404182062,1e-08,1811.9,1811.8,17.27726]
[1746404183264,1e-08,1811.9,1811.8,24.60921307]
[1746404184870,0.179,1812.0,1811.9,5.2409]
[1746404184871,0.17820001,1812.0,1811.9,5.2409]
[1746404185062,0.17820001,1812.0,1811.9,10.0167]
[1746404185261,4.4643,1812.4,1812.3,1.10351]
[1746404185469,4.4643,1812.4,1812.3,8.44846]
[1746404185766,4.4643,1812.4,1812.3,4.31131]
[1746404186270,8.1963,1812.4,1812.3,4.31131]
[1746404189172,8.19625,1812.4,1812.3,4.31131]
[1746404190775,7.0928,1812.4,1812.3,4.31131]
[1746404192072,3.3608,1812.4,1812.3,4.31131]
[1746404192372,8.71569301,1812.8,1812.6,4.13715]
[1746404192373,4.71891573,1812.8,1812.6,4.13715]
[1746404192677,4.44133893,1812.8,1812.7,51.63452]
[1746404194176,1.5944,1812.9,1812.8,1.10321]
[1746404194478,1.5944,1812.9,1812.8,5.24036]
[1746404194773,1.5944,1812.9,1812.8,6.82746]
[1746404198079,7.2994525,1813.6,1813.0,1.10308]
[1746404198380,7.2994525,1813.6,1813.5,4.31058]
[1746404198381,0.8614,1813.6,1813.5,4.31058]
[1746404198776,7.2994525,1813.7,1813.6,1.10272]
[1746404199279,11.0314525,1813.7,1813.6,1.10272]
[1746404199474,11.0314525,1813.7,1813.6,6.96027]
[1746404199779,11.0314525,1813.7,1813.6,11.96027]